bitfinex-derivatives/quotes_SOLF0:USTF0_20241127
["timestamp","ask_amount","ask_price","bid_price","bid_amount"]
[1732666403300,2.1505,232.6,232.53,2.1512]
[1732666403497,11.03447658,232.67,232.51,2.3]
[1732666403798,11.03447658,232.67,232.52,10.66146658]
[1732666404294,11.03447658,232.67,232.56,2.1509]
[1732666404295,2.1504,232.62,232.56,2.1509]
[1732666404500,0.37301,232.67,232.57,2.3]
[1732666405301,2.1502,232.64,232.58,2.1507]
[1732666406608,0.37301,232.67,232.58,2.1507]
[1732666406807,0.37301,232.67,232.57,2.3]
[1732666407000,11.03447658,232.67,232.57,2.3]
[1732666408008,11.03447658,232.67,232.57,4.4508]
[1732666408202,0.37301,232.67,232.57,4.4508]
[1732666409603,0.37301,232.67,232.57,2.3]
[1732666410311,2.1505,232.61,232.57,2.3]
[1732666410515,0.37301,232.67,232.57,2.3]
[1732666411108,2.1502,232.64,232.57,2.3]
[1732666411302,0.37301,232.67,232.57,2.3]
[1732666411707,2.1504,232.62,232.57,4.4508]
[1732666412506,2.1502,232.64,232.57,2.3]
[1732666412711,0.37301,232.67,232.57,2.3]
[1732666413111,2.1502,232.64,232.59,2.1506]
[1732666414019,0.37301,232.67,232.6,2.1505]
[1732666414215,0.37301,232.67,232.57,2.3]
[1732666414710,0.37301,232.67,232.58,2.1507]
[1732666414910,0.37301,232.67,232.58,4.4707]
[1732666416114,0.37301,232.67,232.56,4.4709]
[1732666416413,6.82273449,232.65,232.55,9.14273449]
[1732666416613,6.82273449,232.65,232.56,2.1509]
[1732666416815,2.1505,232.61,232.56,2.1509]
[1732666417008,2.1505,232.61,232.55,9.14273449]
[1732666417213,6.82273449,232.64,232.57,8.97343449]
[1732666417405,6.82273449,232.66,232.57,8.97343449]
[1732666417805,2.1504,232.61,232.57,8.97343449]
[1732666418010,2.1504,232.61,232.57,6.82273449]
[1732666418518,10.66071477,232.71,232.56,10.66071477]
[1732666418817,13.12261477,232.71,232.58,2.1507]
[1732666419019,2.1504,232.62,232.58,2.1507]
[1732666419212,13.12261477,232.71,232.58,2.1507]
[1732666419609,13.12261477,232.71,232.56,10.66071477]
[1732666419817,2.1503,232.63,232.56,10.66071477]
[1732666420012,34.25142954,232.57,232.36,5.82101956]
[1732666420214,4.3001,232.66,232.4,10.66071477]
[1732666420215,3.7181,232.56,232.4,10.66071477]
[1732666420409,3.7181,232.56,232.43,10.66071477]
[1732666420711,2.1514,232.51,232.43,10.66071477]
[1732666421218,0.1514,232.51,232.43,10.66071477]
[1732666421523,3.7181,232.56,232.43,10.66071477]
[1732666422316,2.5,232.61,232.46,10.66071477]
[1732666422515,3.7781,232.61,232.46,10.66071477]
[1732666422721,3.7781,232.61,232.47,2.5]
[1732666422917,2.1509,232.56,232.48,2.1516]
[1732666423122,3.7781,232.61,232.47,2.5]
[1732666423318,3.7781,232.61,232.49,10.66071477]
[1732666423521,1.2781,232.61,232.49,10.66071477]
[1732666423922,2.1508,232.57,232.5,2.1514]
[1732666424121,1.2781,232.61,232.5,2.1514]
[1732666424322,1.2781,232.61,232.49,10.66071477]
[1732666424524,2.1509,232.57,232.49,12.81221477]
[1732666425423,2.1509,232.57,232.5,2.5]
[1732666426424,1.2781,232.61,232.5,2.5]
[1732666426624,2.1509,232.56,232.5,2.5]
[1732666427119,2.12913564,232.72,232.5,2.5]
[1732666427120,10.66071477,232.68,232.52,10.66071477]
[1732666427325,10.66071477,232.68,232.55,10.66071477]
[1732666427521,2.1501,232.66,232.58,12.81131477]
[1732666427719,2.1501,232.66,232.59,2.5]
[1732666427925,10.66071477,232.7,232.59,2.5]
[1732666428924,2.1503,232.63,232.59,2.5]
[1732666429921,10.66071477,232.7,232.55,10.66071477]
[1732666430127,10.66071477,232.7,232.56,2.5]
[1732666430327,13.16071477,232.7,232.56,2.5]
[1732666430725,2.5,232.7,232.56,2.5]
[1732666431229,2.1503,232.63,232.56,4.6509]
[1732666431924,2.1503,232.63,232.56,2.5]
[1732666432124,2.1503,232.63,232.57,2.1508]
[1732666432424,9.42545761,232.69,232.59,10.66071477]
[1732666432632,10.66071477,232.77,232.62,10.66071477]
[1732666432821,1.2502,232.76,232.63,2.5]
[1732666433731,12.79041134,232.76,232.63,2.5]
[1732666434329,2.1497,232.69,232.63,2.5]
[1732666435129,11.54021134,232.75,232.64,2.1501]
[1732666435324,12.79041134,232.76,232.64,2.1501]
[1732666435630,11.55452324,232.75,232.64,2.1501]
[1732666435827,11.55452324,232.74,232.63,2.5]
[1732666436023,1.2502,232.76,232.63,2.5]
[1732666436431,1.2502,232.76,232.65,2.15]
[1732666437131,2.1495,232.72,232.65,2.15]
[1732666437429,11.55781521,232.75,232.65,10.66071477]
[1732666437630,0.51035,232.8,232.71,10.66071477]
[1732666437833,0.51035,232.8,232.72,2.5]
[1732666438025,2.149,232.77,232.72,2.5]
[1732666438222,0.51035,232.8,232.72,2.5]
[1732666438423,0.51035,232.8,232.68,10.66071477]
[1732666438729,10.66071477,232.78,232.65,2.5]
[1732666438933,3.8799,232.77,232.64,2.5]
[1732666439132,3.8799,232.77,232.63,13.16071477]
[1732666439133,2.1496,232.7,232.63,13.16071477]
[1732666439428,0.51035,232.8,232.69,10.66071477]
[1732666439635,0.51035,232.8,232.7,2.5]
[1732666439830,2.1491,232.76,232.7,2.5]
[1732666440029,0.51035,232.8,232.7,2.5]
[1732666440735,0.51035,232.8,232.75,10.66071477]
[1732666441128,0.51035,232.8,232.76,2.5]
[1732666441537,2.65905,232.8,232.75,10.66071477]
[1732666441836,1.2636,232.83,232.68,10.66071477]
[1732666442131,2.1488,232.79,232.68,13.16071477]
[1732666442337,1.2636,232.83,232.68,13.16071477]
[1732666442734,2.1492,232.75,232.68,13.16071477]
[1732666442935,1.2636,232.83,232.68,13.16071477]
[1732666443532,1.2636,232.83,232.68,10.66071477]
[1732666443729,1.2636,232.83,232.69,2.5]
[1732666443930,2.1488,232.79,232.69,2.5]
[1732666444135,1.2636,232.83,232.71,10.66071477]
[1732666445031,1.2636,232.83,232.69,2.5]
[1732666445435,1.2636,232.83,232.71,10.66071477]
[1732666446229,2.1489,232.78,232.72,2.1494]
[1732666446434,2.1489,232.78,232.71,10.66071477]
[1732666447236,2.1489,232.78,232.73,2.1493]
[1732666448330,2.149,232.77,232.72,2.1494]
[1732666449240,1.2636,232.83,232.71,10.66071477]
[1732666450635,2.1493,232.74,232.71,10.66071477]
[1732666450840,2.1493,232.74,232.51,292.3026]
[1732666450841,11.92431477,232.83,232.68,10.66071477]
[1732666451644,14.10914416,232.83,232.68,10.66071477]
[1732666451942,10.66071477,232.81,232.68,10.66071477]
[1732666452843,2.62,232.9,232.71,10.66071477]
[1732666453044,1.2331,232.82,232.71,10.66071477]
[1732666453239,2.5009,232.81,232.71,10.66071477]
[1732666453647,115.06756891,235.82,232.71,10.66071477]
[1732666453838,10.66071477,232.84,232.68,10.66071477]
[1732666454040,3.8823,232.83,232.68,10.66071477]
[1732666454239,2.1488,232.79,232.68,10.66071477]
[1732666454439,3.8823,232.83,232.68,10.66071477]
[1732666455745,3.8823,232.83,232.68,12.81051477]
[1732666456340,2.1494,232.73,232.68,12.81051477]
[1732666456937,2.62,232.77,232.62,2.62]
[1732666457136,2.5563,232.76,232.65,10.66071477]
[1732666457841,2.1497,232.69,232.65,10.66071477]
[1732666458039,2.5563,232.76,232.65,10.66071477]
[1732666458445,10.66071477,232.75,232.62,10.66071477]
[1732666458941,1.2736,232.74,232.49,1.07583257]
[1732666459137,1.2736,232.74,232.59,10.66071477]
[1732666459338,2.1502,232.65,232.59,12.81121477]
[1732666459941,2.1503,232.63,232.59,10.66071477]
[1732666460942,2.1505,232.61,232.56,10.66071477]
[1732666461149,10.66071477,232.69,232.56,10.66071477]
[1732666461443,2.1504,232.62,232.56,10.66071477]
[1732666461643,2.62,232.7,232.59,10.66071477]
[1732666461943,2.1501,232.65,232.59,12.81131477]
[1732666462145,2.1501,232.65,232.59,10.66071477]
[1732666462547,2.15,232.66,232.61,2.1504]
[1732666463745,2.62,232.7,232.59,10.66071477]
[1732666464050,2.15,232.66,232.6,2.1505]
[1732666464853,2.1501,232.65,232.6,2.1505]
[1732666465650,2.62,232.7,232.59,10.66071477]
[1732666466257,2.62,232.7,232.6,2.1505]
[1732666466952,2.1501,232.66,232.6,2.1505]
[1732666467551,2.1499,232.67,232.62,2.1503]
[1732666467753,3.8936,232.74,232.62,10.66071477]
[1732666468154,2.62,232.74,232.62,10.66071477]
[1732666468358,2.62,232.74,232.68,6.81622629]
[1732666468855,2.1494,232.72,232.68,6.81622629]
[1732666469053,2.1494,232.72,232.66,6.81622629]
[1732666469252,28.61482447,232.82,232.58,2.62]
[1732666469457,6.81622629,232.79,232.71,6.81622629]
[1732666469855,6.81622629,232.79,232.69,2.1497]
[1732666469856,6.81622629,232.79,232.69,8.96592629]
[1732666470055,2.1491,232.76,232.71,6.81622629]
[1732666470255,2.62,232.81,232.68,10.64674111]
[1732666470455,2.1489,232.79,232.68,10.64674111]
[1732666470857,28.61482447,232.82,232.71,10.64674111]
[1732666471053,27.37232447,232.82,232.74,10.64674111]
[1732666471253,2.1483,232.85,232.74,10.64674111]
[1732666471749,2.1479,232.89,232.82,2.1485]
[1732666471949,1.2758,232.91,232.82,2.1485]
[1732666472151,1.2758,232.91,232.8,10.64674111]
[1732666472355,0.53481,232.9,232.77,10.64674111]
[1732666472660,1.74161,232.9,232.77,13.26674111]
[1732666473156,12.38835111,232.9,232.77,13.26674111]
[1732666473861,2.1481,232.86,232.8,2.1487]
[1732666474057,12.38835111,232.9,232.77,13.26674111]
[1732666474260,1.74161,232.9,232.77,13.26674111]
[1732666474463,3.88941,232.9,232.83,2.1484]
[1732666474764,0.53481,232.9,232.77,13.26674111]
[1732666475160,2.1479,232.89,232.82,2.1485]
[1732666475460,0.53481,232.9,232.77,13.26674111]
[1732666476157,2.1479,232.89,232.77,13.26674111]
[1732666476756,2.1481,232.86,232.79,2.1487]
[1732666477262,2.1481,232.86,232.77,13.26674111]
[1732666477263,0.53481,232.9,232.77,13.26674111]
[1732666478962,0.53481,232.9,232.77,10.64674111]
[1732666479358,2.1482,232.85,232.78,2.1488]
[1732666482359,0.53481,232.9,232.77,10.64674111]
[1732666482560,0.53481,232.9,232.76,2.62]
[1732666482759,10.64674111,232.88,232.71,10.64674111]
[1732666482957,0.53481,232.9,232.71,10.64674111]
[1732666482958,10.64674111,232.85,232.71,10.64674111]
[1732666483153,2.54,232.84,232.71,10.64674111]
[1732666483659,2.1487,232.8,232.72,2.1493]
[1732666483859,2.1487,232.8,232.71,10.64674111]
[1732666484260,2.1488,232.79,232.71,10.64674111]
[1732666484460,2.54,232.84,232.71,10.64674111]
[1732666484862,2.1488,232.8,232.72,2.1494]
[1732666485063,2.54,232.84,232.72,2.1494]
[1732666485954,2.54,232.84,232.71,10.64674111]
[1732666486159,2.54,232.84,232.73,2.1493]
[1732666486962,2.1486,232.81,232.73,2.1493]
[1732666487157,2.54,232.84,232.73,2.1493]
[1732666488163,2.54,232.84,232.71,10.64674111]
[1732666489361,2.1487,232.8,232.74,2.1492]
[1732666491861,2.54,232.84,232.71,10.64674111]
[1732666492162,10.64674111,232.89,232.74,10.64674111]
[1732666492362,6.80887579,232.87,232.79,6.80887579]
[1732666492764,1.3024,232.91,232.79,6.80887579]
[1732666492959,6.80887579,232.89,232.79,6.80887579]
[1732666493362,2.1483,232.84,232.79,6.80887579]
[1732666493566,6.80887579,232.87,232.79,6.80887579]
[1732666494370,2.1483,232.84,232.78,2.1488]
[1732666495572,2.1482,232.85,232.74,13.17958397]
[1732666495773,2.54,232.88,232.74,13.17958397]
[1732666496372,2.1483,232.84,232.77,10.63958397]
[1732666496767,2.1483,232.84,232.79,2.1488]
[1732666497967,1.3024,232.91,232.79,2.1488]
[1732666498164,2.5044,232.92,232.8,10.63958397]
[1732666498369,2.5044,232.92,232.8,13.17958397]
[1732666498768,2.5044,232.92,232.81,2.1485]
[1732666498769,2.1481,232.87,232.81,2.1485]
[1732666499069,2.5044,232.92,232.8,2.54]
[1732666499272,2.1481,232.86,232.81,2.1485]
[1732666499473,2.1481,232.86,232.77,10.63958397]
[1732666500171,2.5044,232.92,232.77,10.63958397]
[1732666500361,10.63958397,232.9,232.74,10.63958397]
[1732666500566,10.63958397,232.87,232.74,10.63958397]
[1732666500766,2.54,232.86,232.74,10.63958397]
[1732666501367,2.1485,232.82,232.77,2.149]
[1732666502765,2.54,232.86,232.77,2.149]
[1732666502965,2.1486,232.81,232.77,2.149]
[1732666504170,2.1488,232.79,232.71,13.17958397]
[1732666504573,2.1488,232.79,232.73,2.1493]
[1732666504767,2.1488,232.79,232.71,13.17958397]
[1732666505364,10.63958397,232.81,232.68,10.63958397]
[1732666506269,2.1492,232.75,232.68,10.63958397]
[1732666506471,10.63958397,232.81,232.65,13.17958397]
[1732666506674,2.1493,232.74,232.68,2.1497]
[1732666506872,10.63958397,232.81,232.68,2.1497]
[1732666507071,10.63958397,232.81,232.62,20.72140405]
[1732666507374,2.1495,232.71,232.65,2.1501]
[1732666507568,2.54,232.74,232.63,10.63958397]
[1732666507769,2.1494,232.72,232.66,2.1499]
[1732666508375,2.54,232.74,232.64,2.1501]
[1732666508874,2.4698,232.73,232.64,2.1501]
[1732666509070,2.4698,232.73,232.65,2.1501]
[1732666509469,2.4698,232.73,232.64,10.63958397]
[1732666510172,1.2391,232.73,232.7,2.1496]
[1732666510363,2.4,232.78,232.67,10.63958397]
[1732666510970,2.1489,232.78,232.67,10.63958397]
[1732666511171,2.4,232.79,232.67,10.63958397]
[1732666511370,2.1489,232.79,232.67,10.63958397]
[1732666511567,2.1489,232.79,232.7,10.63958397]
[1732666511972,2.1489,232.78,232.72,2.1494]
[1732666512471,1.2391,232.8,232.72,2.1494]
[1732666512472,2.149,232.77,232.72,2.1494]
[1732666512671,2.149,232.77,232.67,10.63958397]
[1732666512880,14.27868397,232.8,232.67,10.63958397]
[1732666513173,14.27868397,232.8,232.64,13.03958397]
[1732666513372,14.27868397,232.8,232.67,2.1499]
[1732666513678,14.27868397,232.8,232.64,13.03958397]
[1732666513879,14.27868397,232.8,232.67,2.1498]
[1732666514079,2.1489,232.78,232.67,10.63958397]
[1732666514379,3.6391,232.8,232.67,10.63958397]
[1732666515476,3.6391,232.8,232.76,2.149]
[1732666515680,3.6391,232.8,232.67,10.63958397]
[1732666515981,2.149,232.77,232.7,2.1495]
[1732666516180,2.149,232.77,232.67,10.63958397]
[1732666516678,2.1491,232.76,232.67,10.63958397]
[1732666517068,2.1491,232.76,232.71,2.1495]
[1732666517273,1.2391,232.8,232.67,10.63958397]
[1732666518279,10.63958397,232.85,232.7,10.63958397]
[1732666518475,12.08166302,232.84,232.71,2.4]
[1732666518676,2.4,232.84,232.77,2.1489]
[1732666518987,10.63958397,232.82,232.71,2.4]
[1732666519175,2.1489,232.78,232.72,2.1493]
[1732666519381,2.1489,232.78,232.71,2.4]
[1732666519881,2.4,232.78,232.64,10.63958397]
[1732666520278,4.5489,232.78,232.72,2.1494]
[1732666520478,2.4,232.78,232.67,10.63958397]
[1732666521180,2.1491,232.76,232.67,10.63958397]
[1732666521875,2.4,232.78,232.66,2.4]
[1732666522082,2.149,232.77,232.66,2.4]
[1732666522984,2.149,232.77,232.72,2.1494]
[1732666523283,2.4,232.78,232.66,2.4]
[1732666523484,2.1492,232.75,232.7,2.1495]
[1732666523784,2.1492,232.75,232.66,2.4]
[1732666523984,2.1491,232.76,232.66,2.4]
[1732666524180,2.4,232.78,232.66,2.4]
[1732666524381,3.6693,232.78,232.66,2.4]
[1732666524682,3.6693,232.78,232.65,2.4]
[1732666526287,2.4,232.77,232.65,2.4]
[1732666526879,2.4,232.77,232.67,10.63958397]
[1732666527182,2.4,232.83,232.7,10.63958397]
[1732666527390,10.07579973,232.82,232.7,10.63958397]
[1732666527682,10.07579973,232.82,232.73,10.63958397]
[1732666527981,2.4,232.86,232.73,13.03958397]
[1732666528185,2.1484,232.83,232.78,2.1488]
[1732666528376,2.1484,232.83,232.73,13.03958397]
[1732666528573,2.4,232.86,232.73,13.03958397]
[1732666528781,2.1483,232.84,232.73,13.03958397]
[1732666528981,12.22280071,232.84,232.73,13.03958397]
[1732666529177,2.4,232.86,232.73,13.03958397]
[1732666529375,2.1482,232.86,232.73,13.03958397]
[1732666529684,10.45774255,232.85,232.73,13.03958397]
[1732666529889,10.45774255,232.85,232.76,2.149]
[1732666530085,10.45774255,232.85,232.73,13.03958397]
[1732666530576,12.60604255,232.85,232.73,13.03958397]
[1732666530781,10.45774255,232.84,232.73,13.03958397]
[1732666531178,1.2331,232.87,232.73,13.03958397]
[1732666531375,1.2331,232.87,232.76,10.63958397]
[1732666531575,13.56709883,232.87,232.76,10.63958397]
[1732666531786,10.45604489,232.86,232.81,2.1485]
[1732666531989,14.48199883,232.87,232.81,2.1485]
[1732666531990,2.148,232.87,232.81,2.1485]
[1732666532279,2.148,232.87,232.82,2.1485]
[1732666532680,2.1484,232.84,232.73,13.03958397]
[1732666532882,11.83388397,232.88,232.73,13.03958397]
[1732666533080,10.45085469,232.87,232.73,2.4]
[1732666533288,11.64515469,232.88,232.73,13.03958397]
[1732666533585,10.63958397,232.85,232.73,2.4]
[1732666533783,2.4,232.84,232.7,10.63958397]
[1732666533988,2.4,232.84,232.69,2.4]
[1732666534181,10.63958397,232.82,232.67,13.03958397]
[1732666534386,2.4,232.84,232.7,10.63958397]
[1732666534587,9.98831002,232.83,232.7,10.63958397]
[1732666534787,2.1485,232.82,232.7,10.63958397]
[1732666535093,2.4,232.84,232.73,10.63958397]
[1732666535783,2.4,232.84,232.7,10.63958397]
[1732666536292,9.98784459,232.83,232.7,10.63958397]
[1732666537285,9.98784459,232.83,232.71,2.1495]
[1732666537486,2.4,232.84,232.7,10.63958397]
[1732666537787,2.1489,232.78,232.7,10.63958397]
[1732666538388,2.4,232.84,232.75,2.1491]
[1732666538389,2.1488,232.8,232.75,2.1491]
[1732666538586,2.4,232.84,232.7,10.63958397]
[1732666539182,2.1485,232.83,232.77,2.149]
[1732666539381,2.4,232.84,232.73,10.63958397]
[1732666539581,11.83388397,232.88,232.73,10.63958397]
[1732666539582,2.36,232.85,232.73,10.63958397]
[1732666539792,2.1485,232.83,232.77,2.1489]
[1732666539988,2.36,232.85,232.73,12.99958397]
[1732666540289,2.1483,232.84,232.78,2.1488]
[1732666540488,9.98850073,232.85,232.73,12.99958397]
[1732666540687,2.36,232.87,232.73,12.99958397]
[1732666540892,2.1482,232.85,232.8,2.1487]
[1732666541086,2.36,232.87,232.8,2.1487]
[1732666541591,2.1483,232.85,232.8,2.1487]
[1732666541989,2.1483,232.84,232.79,2.1488]
[1732666542490,6.80921342,232.86,232.78,6.80921342]
[1732666543187,8.95741342,232.86,232.8,2.1487]
[1732666543392,8.95741342,232.86,232.78,6.80921342]
[1732666543694,6.80921342,232.86,232.78,6.80921342]
[1732666545489,6.80921342,232.86,232.76,6.80921342]
[1732666546092,2.1484,232.83,232.78,2.1488]
[1732666546489,2.1484,232.83,232.76,6.80921342]
[1732666546794,2.1486,232.81,232.74,6.80921342]
[1732666548291,2.1486,232.81,232.76,2.149]
[1732666548697,2.1486,232.81,232.73,2.36]
[1732666548898,6.80921342,232.84,232.75,6.80921342]
[1732666549499,2.1488,232.8,232.75,8.95831342]
[1732666549894,1.1943,232.88,232.77,6.80921342]
[1732666550089,2.1487,232.8,232.75,8.95831342]
[1732666550595,6.80921342,232.79,232.68,2.36]
[1732666550791,6.80921342,232.79,232.71,6.80921342]
[1732666551195,2.149,232.78,232.71,6.80921342]
[1732666551598,2.149,232.77,232.72,2.1493]
[1732666551798,1.1943,232.88,232.75,6.80921342]
[1732666551994,6.80921342,232.87,232.79,6.80921342]
[1732666552202,10.36826561,232.86,232.79,6.80921342]
[1732666553196,12.51646561,232.86,232.79,6.80921342]
[1732666553402,6.80921342,232.87,232.8,2.1486]
[1732666553603,10.36866739,232.86,232.8,2.1486]
[1732666554405,6.80921342,232.87,232.8,2.1486]
[1732666554702,10.37101325,232.86,232.8,2.1486]
[1732666555205,1.1943,232.88,232.81,6.80921342]
[1732666555400,11.56579121,232.88,232.81,6.80921342]
[1732666555997,2.1481,232.87,232.82,2.1485]
[1732666556899,1.1943,232.88,232.81,6.80921342]
[1732666557104,1.1943,232.88,232.83,6.80921342]
[1732666557606,11.56477802,232.88,232.83,6.80921342]
[1732666557803,3.3422,232.88,232.81,6.80921342]
[1732666558005,1.1943,232.88,232.81,6.80921342]
[1732666559103,11.94902143,232.88,232.74,2.36]
[1732666559306,10.75472143,232.87,232.83,6.80921342]
[1732666559609,1.1943,232.88,232.83,6.80921342]
[1732666559806,3.3423,232.88,232.83,6.80921342]
[1732666560004,10.7546651,232.87,232.83,6.80921342]
[1732666560211,10.7546651,232.87,232.82,6.80921342]
[1732666560412,12.9027651,232.87,232.82,8.95771342]
[1732666560709,1.1943,232.88,232.8,6.80921342]
[1732666560710,8.00351342,232.88,232.8,6.80921342]
[1732666560909,10.75529097,232.86,232.8,6.80921342]
[1732666561105,8.00351342,232.88,232.8,6.80921342]
[1732666561409,10.5469853,232.87,232.81,2.1486]
[1732666561604,298.90414932,233.24,232.8,2.36]
[1732666561605,12.93,233.06,232.8,2.36]
[1732666561805,6.80921342,232.92,232.81,2.36]
[1732666562013,6.80921342,232.9,232.83,6.80921342]
[1732666562309,2.1481,232.86,232.81,8.95771342]
[1732666562709,6.80921342,232.9,232.81,8.95771342]
[1732666562710,6.80921342,232.9,232.81,6.80921342]
[1732666563011,2.1481,232.86,232.81,6.80921342]
[1732666563406,6.80921342,232.9,232.81,6.80921342]
[1732666563611,10.54550737,232.89,232.81,6.80921342]
[1732666564109,12.69340737,232.89,232.83,2.1484]
[1732666564311,10.54550737,232.89,232.83,2.1484]
[1732666564812,10.54550737,232.89,232.81,6.80921342]
[1732666565209,2.1482,232.85,232.8,8.95791342]
[1732666565813,2.1484,232.84,232.78,2.1488]
[1732666566113,6.80921342,232.88,232.79,6.80921342]
[1732666566311,2.1483,232.85,232.79,8.95801342]
[1732666566608,19.71697393,232.84,232.76,6.80921342]
[1732666566817,9.16921342,232.84,232.76,6.80921342]
[1732666567010,9.16921342,232.84,232.78,6.80921342]
[1732666567509,6.80921342,232.86,232.78,6.80921342]
[1732666567711,10.54953156,232.85,232.78,6.80921342]
[1732666568214,2.1483,232.84,232.79,2.1488]
[1732666569815,6.80921342,232.86,232.79,2.1488]
[1732666570016,2.1484,232.83,232.79,2.1488]
[1732666571010,2.1484,232.83,232.78,2.1489]
[1732666571210,6.80921342,232.84,232.7,2.36]
[1732666571409,4.8281,232.87,232.74,6.80921342]
[1732666571410,6.80921342,232.82,232.74,6.80921342]
[1732666571619,2.1487,232.8,232.75,2.1491]
[1732666571915,6.80921342,232.82,232.62,23.28407825]
[1732666572110,6.80921342,232.82,232.74,6.80921342]
[1732666572821,2.1489,232.78,232.74,6.80921342]
[1732666574318,2.26,232.81,232.74,6.80921342]
[1732666574524,6.80921342,232.8,232.7,2.1495]
[1732666574717,6.80921342,232.8,232.71,6.80921342]
[1732666575129,2.1491,232.76,232.71,6.80921342]
[1732666575322,6.80921342,232.8,232.71,6.80921342]
[1732666575720,2.1491,232.76,232.71,8.95871342]
[1732666575920,2.1491,232.76,232.71,6.80921342]
[1732666576719,6.80921342,232.76,232.67,2.26]
[1732666576920,2.26,232.75,232.67,6.80921342]
[1732666577121,6.80921342,232.74,232.66,6.80921342]
[1732666577322,2.1497,232.7,232.66,6.80921342]
[1732666577519,1.2229,232.74,232.68,6.80921342]
[1732666577723,1.2229,232.74,232.6,2.26]
[1732666577919,1.2229,232.74,232.7,6.80921342]
[1732666578219,6.80921342,232.79,232.72,6.80921342]
[1732666578423,1.2264,232.78,232.7,8.95881342]
[1732666578619,2.1495,232.72,232.68,9.06921342]
[1732666579019,2.1495,232.72,232.68,6.80921342]
[1732666579328,2.1494,232.73,232.68,6.80921342]
[1732666579542,1.2264,232.78,232.72,6.80921342]
[1732666580025,1.2264,232.78,232.74,6.80921342]
[1732666580821,1.2264,232.78,232.72,6.80921342]
[1732666581025,3.3753,232.78,232.72,8.95851342]
[1732666581225,1.2264,232.78,232.72,6.80921342]
[1732666581627,1.2264,232.78,232.73,2.1493]
[1732666581830,1.2264,232.78,232.72,6.80921342]
[1732666582128,2.149,232.77,232.72,6.80921342]
[1732666582327,2.149,232.77,232.71,2.26]
[1732666582527,8.03561342,232.78,232.7,6.80921342]
[1732666582720,2.1491,232.76,232.71,2.1495]
[1732666583229,2.1491,232.76,232.7,8.95881342]
[1732666583426,1.2264,232.78,232.7,6.80921342]
[1732666583629,1.2264,232.78,232.72,6.80921342]
[1732666583926,10.70197819,232.79,232.72,6.80921342]
[1732666584128,10.70197819,232.81,232.76,6.80921342]
[1732666584333,3.6928,232.83,232.76,6.80921342]
[1732666584528,10.70140833,232.82,232.76,6.80921342]
[1732666585227,12.84990833,232.82,232.77,2.149]
[1732666585428,10.70140833,232.82,232.76,6.80921342]
[1732666585924,1.2934,232.92,232.78,6.80921342]
[1732666585925,2.26,232.91,232.78,6.80921342]
[1732666586129,6.80921342,232.87,232.78,6.80921342]
[1732666586324,10.69985926,232.86,232.78,6.80921342]
[1732666586527,10.69985926,232.86,232.79,2.1487]
[1732666586936,13.09684517,232.85,232.79,2.1487]
[1732666587231,12.84825926,232.84,232.79,2.1487]
[1732666587434,2.1484,232.84,232.79,2.1487]
[1732666587929,6.80921342,232.85,232.78,2.1489]
[1732666588230,6.80921342,232.79,232.7,6.80921342]
[1732666588532,6.80921342,232.79,232.7,2.26]
[1732666588734,6.80921342,232.75,232.61,5.82101956]
[1732666588927,6.80921342,232.75,232.68,2.1498]
[1732666589124,2.26,232.77,232.66,6.80921342]
[1732666589330,2.1494,232.73,232.69,2.1497]
[1732666589631,2.26,232.77,232.7,6.80921342]
[1732666589929,8.10611342,232.78,232.63,2.26]
[1732666589930,1.2969,232.78,232.73,2.1493]
[1732666590136,1.2969,232.78,232.72,6.80921342]
[1732666590931,2.149,232.77,232.72,8.95851342]
[1732666591127,8.10611342,232.78,232.7,6.80921342]
[1732666592133,6.80921342,232.76,232.68,6.80921342]
[1732666592929,2.1492,232.75,232.68,6.80921342]
[1732666593126,6.80921342,232.77,232.68,6.80921342]
[1732666593325,2.1492,232.75,232.68,8.95901342]
[1732666593540,6.80921342,232.77,232.68,8.95901342]
[1732666593936,2.1493,232.73,232.68,2.1498]